{"text_format":"1","workbook":"xlsx","n_sheets":8,"sheets":["Wstęp","Makro i swap","Odpady","Prace interwencyjne","Koszty netto>>","Koszty netto_nieruch ogólnodost","Rekompensata>>","Rekompensata ogółem"],"not_rendered":{"charts":0,"images":1,"macros":1,"external_links":0,"defined_names":7,"comments":0,"pivot_tables":0},"unopened":[],"bounds":{"document_bytes":16777216,"sheet_cells":100000,"rows_first":2000,"rows_last":500,"rows_between":2000,"halvings":0,"cell_chars":16384,"cell_head_chars":4096},"cells_cut":0,"cells_raw":0,"read":"whole","date_system":"1900"}

{"sheet":"Wstęp","index":0,"n_rows":1,"n_cols":2,"rows_kept":1,"cut":false,"hidden":false,"merged":[]}
[null,"Model bazuje na danych i informacjach otrzymanych od zlecającego oraz uzyskanych ze źródeł publicznych, jeżeli źródła te mogą być racjonalnie uznane za wiarygodne. Zakładamy, że wszelkie otrzymane dane i informacje dotyczące planowanych kosztów i przychodów są dokładne, kompletne, rzetelne oraz aktualne na moment przygotowywania Modelu. Nie jesteśmy zobowiązani do weryfikacji jakichkolwiek informacji lub dokumentów otrzymanych od zlecającego, w tym informacji dotyczących kosztów i przychodów, udzielonych pożyczek oraz inwestycji zrealizowanych, a także planowanych do realizacji. \n\nZlecający potwierdza, że Model poprawnie odzwierciedla przekazane przez zlecającego dane, założenia i najlepszą wiedzę zlecającego.\n\nZlecający rozumie, że zmiana jakiegokolwiek założenia, wartości lub odwołania może spowodować zmianę rezultatów Modelu. \n\nPrognozy finansowe otrzymane od zlecającego i założenia zawarte w Modelu nie stanowią zapewnienia osiągnięcia zakładanych w prognozach finansowych wyników finansowych.\n\nModel musi być prezentowany w całości i jest przygotowany jedynie w celach opisanych w umowie między zlecającym a zleceniobiorcą. Model nie może być rozpowszechniany do osób trzecich bez pisemnej zgody zleceniobiorcy.\n"]

{"sheet":"Makro i swap","index":1,"n_rows":9,"n_cols":13,"rows_kept":9,"cut":false,"hidden":false,"merged":[]}
[]
["ZAŁOŻENIA MAKROEKONOMICZNE",null,2022,{"$f":"C2+1","v":2023},{"$f":"D2+1","v":2024},2025,2026,2027,2028,2029,2030,2031,2032]
[]
["Inflacja",null,1.1080000000000001,1.0900000000000001,1.042,1.03,1.03,1.03,1.03,1.03,1.03,1.03,1.03]
["Dynamika realnego wzrostu płac",null,1.03,1.03,1.03,1.03,1.03,1.03,1.03,1.03,1.03,1.03,1.03]
[]
[]
["Stopy swap dla SGEI – Komisja Europejska","Marża",0.01,null,"https://ec.europa.eu/competition-policy/state-aid/legislation/sgei/swap-rate-proxies_en"]
["1.07.2021–31.12.2021",null,2.5399999999999999E-2]

{"sheet":"Odpady","index":2,"n_rows":15,"n_cols":15,"rows_kept":15,"cut":false,"hidden":false,"merged":[]}
[]
["Odpady ",null,"Jednostka",null,null,2023,{"$f":"F2+1","v":2024},{"$f":"G2+1","v":2025},2026,2027,2028,{"$f":"K2+1","v":2029},{"$f":"L2+1","v":2030},{"$f":"M2+1","v":2031},{"$f":"N2+1","v":2032}]
[]
["kody odpadów",null,"tona",0,null,0,0,0,0,0,0,0,0,0,0]
["20 03 01",null,"tona",0,null,0,0,0,0,0,0,0,0,0,0]
["20 03 07",null,"tona",0,null,0,0,0,0,0,0,0,0,0,0]
["20 01 35, 20 01 36",null,"tona",0,null,0,0,0,0,0,0,0,0,0,0]
["17 01 podgrupa",null,"tona",0,null,0,0,0,0,0,0,0,0,0,0]
["16 01 03",null,"tona",0,null,0,0,0,0,0,0,0,0,0,0]
["20 03 99",null,"tona",0,null,0,0,0,0,0,0,0,0,0,0]
["20 01 01",null,"tona",0,null,0,0,0,0,0,0,0,0,0,0]
["20 01 02",null,"tona",0,null,0,0,0,0,0,0,0,0,0,0]
["15 01 02",null,"tona",0,null,0,0,0,0,0,0,0,0,0,0]
["20 01 40",null,"tona",0,null,0,0,0,0,0,0,0,0,0,0]
["inne",null,"tona",0,null,0,0,0,0,0,0,0,0,0,0]

{"sheet":"Prace interwencyjne","index":3,"n_rows":8,"n_cols":6,"rows_kept":8,"cut":false,"hidden":false,"merged":[]}
["Założenia do kalkulacji prac interwencyjnych"]
["Lp.","Rodzaj usług","Liczba ","Koszty bezpośrednie jednostkowe netto","Koszty bezpośrednie ogółem netto","Udział \n"]
[1,"Wynajem pojemników",0,0,{"$f":"C3*D3","v":0},0]
[2,"Wynajem pracowników (liczba roboczogodzin)",0,0,{"$f":"C4*D4","v":0},0]
[3,"Wynajem ładowarki (liczba motogodzin)",0,0,0,0]
[4,"Wynajem samochodu dostawczego (liczba kilometrów)",0,0,0,0]
[5,"Wynajem samochodu ciężarowego (liczba kilometrów)",0,0,0,0]
[6,"Razem","-","-",{"$f":"SUM(E3:E7)","v":0},0]

{"sheet":"Koszty netto>>","index":4,"n_rows":4,"n_cols":2,"rows_kept":4,"cut":false,"hidden":false,"merged":[]}
[]
[]
[null,"Przychody"]
[null,"Koszty"]

{"sheet":"Koszty netto_nieruch ogólnodost","index":5,"n_rows":168,"n_cols":15,"rows_kept":168,"cut":false,"hidden":false,"merged":[]}
[]
[]
[]
["KOSZTY OPERACYJNE",null,"Jednostka",null,null,2023,{"$f":"F4+1","v":2024},{"$f":"G4+1","v":2025},2026,2027,2028,{"$f":"K4+1","v":2029},{"$f":"L4+1","v":2030},{"$f":"M4+1","v":2031},{"$f":"N4+1","v":2032}]
[]
["Koszty operacyjne",null,"PLN",0,null,0,0,0,0,0,0,0,0,0,0]
["Amortyzacja",null,"PLN",{"$f":"SUM(F7:O7)","v":0},null,{"$f":"IF(F22=\"\",F17,F22)","v":0},{"$f":"IF(G22=\"\",G17,G22)","v":0},0,0,0,0,{"$f":"IF(L22=\"\",L17,L22)","v":0},0,0,0]
["Zużycie materiałów i energii",null,"PLN",0,null,0,0,0,0,0,0,0,0,0,0]
["Usługi obce",null,"PLN",0,null,0,0,0,0,0,0,0,0,0,0]
["Podatki i opłaty",null,"PLN",{"$f":"SUM(F10:O10)","v":0},null,{"$f":"IF(F97=\"\",F92,F97)","v":0},0,0,0,0,0,{"$f":"IF(L97=\"\",L92,L97)","v":0},0,0,0]
["Wynagrodzenia oraz ubezpieczenia społeczne i inne świadczenia",null,"PLN",0,null,0,0,0,0,0,0,0,0,0,0]
["Pozostałe koszty rodzajowe",null,"PLN",0,null,0,0,0,0,0,0,0,0,0,0]
["Wartość sprzedanych towarów i materiałów",null,"PLN",0,null,{"$f":"IF(F138=\"\",F136,F138)","v":0},0,0,0,0,0,{"$f":"IF(L138=\"\",L136,L138)","v":0},0,0,0]
[]
[]
[]
["Amortyzacja – prognoza",null,"PLN",null,null,{"$f":"F18+F19","v":0},{"$f":"G18+G19","v":0},0,0,0,0,{"$f":"L18+L19","v":0},0,0,0]
["Koszty bezpośrednie",null,"PLN"]
["Koszty pośrednie",null,"PLN"]
["Klucz podziałowy"]
[]
["Amortyzacja – wartości rzeczywiste w danym roku",null,"PLN",null,null,{"$f":"IF(AND(F23=\"\",F24=\"\"),\"\",F23+F24)","v":""},{"$f":"IF(AND(G23=\"\",G24=\"\"),\"\",G23+G24)","v":""},"","","","",{"$f":"IF(AND(L23=\"\",L24=\"\"),\"\",L23+L24)","v":""},"","",""]
["Koszty bezpośrednie",null,"PLN"]
["Koszty pośrednie",null,"PLN"]
[]
[]
[]
["Zużycie materiałów i energii – prognoza",null,"PLN",null,null,0,0,0,0,0,0,0,0,0,0]
["Koszty bezpośrednie",null,"PLN",null,null,0,0,0,0,0,0,0,0,0,0]
["Koszty pośrednie",null,"PLN",null,null,0,0,0,0,0,0,0,0,0,0]
["Klucz podziałowy",null,"PLN",null,null,0,0,0,0,0,0,0,0,0,0]
[]
["Zużycie materiałów i energii – wartości rzeczywiste w danym roku",null,"PLN",null,null,{"$f":"IF(AND(F34=\"\",F35=\"\"),\"\",F34+F35)","v":""},{"$f":"IF(AND(G34=\"\",G35=\"\"),\"\",G34+G35)","v":""},"","","","",{"$f":"IF(AND(L34=\"\",L35=\"\"),\"\",L34+L35)","v":""},"","",""]
["Koszty bezpośrednie",null,"PLN"]
["Koszty pośrednie",null,"PLN"]
[]
["Paliwo – samochód dostawczy"]
["Zużycie",null,"l/100 km",null,null,0,0,0,0,0,0,0,0,0,0]
["Liczba km",null,"km",null,null,0,0,0,0,0,0,0,0,0,0]
["Cena jednostkowa",null,"PLN/l",null,null,0,0,{"$f":"G40*'Makro i swap'!F4","v":0},{"$f":"H40*'Makro i swap'!G4","v":0},{"$f":"I40*'Makro i swap'!H4","v":0},{"$f":"J40*'Makro i swap'!I4","v":0},{"$f":"K40*'Makro i swap'!J4","v":0},{"$f":"L40*'Makro i swap'!K4","v":0},{"$f":"M40*'Makro i swap'!L4","v":0},{"$f":"N40*'Makro i swap'!M4","v":0}]
[]
["Paliwo – samochód ciężarowy"]
["Zużycie",null,"l/100 km",null,null,0,0,0,0,0,0,0,0,0,0]
["Liczba km",null,"km",null,null,0,0,0,0,0,0,0,0,0,0]
["Cena jednostkowa",null,"PLN/l",null,null,{"$f":"F40","v":0},{"$f":"G40","v":0},0,0,0,0,{"$f":"L40","v":0},0,0,0]
[]
[]
["Usługi obce – prognoza",null,"PLN",null,null,0,0,0,0,0,0,0,0,0,0]
["Koszty bezpośrednie",null,"PLN",null,null,0,0,0,0,0,0,0,0,0,0]
["Koszty pośrednie",null,"PLN",null,null,0,0,0,0,0,0,0,0,0,0]
["Klucz podziałowy",null,null,null,null,0,0,0,0,0,0,0,0,0,0]
[]
["Usługi obce – wartości rzeczywiste w danym roku",null,"PLN",null,null,null,{"$f":"IF(AND(G54=\"\",G55=\"\"),\"\",G54+G55)","v":""},"","","","",{"$f":"IF(AND(L54=\"\",L55=\"\"),\"\",L54+L55)","v":""},"","",""]
["Koszty bezpośrednie",null,"PLN"]
["Koszty pośrednie",null,"PLN"]
[]
["Zagospodarowanie odpadów – stawka jednostkowa"]
["20 03 01",null,"PLN/Mg",null,null,0,{"$f":"F58*'Makro i swap'!E$4","v":0},{"$f":"G58*'Makro i swap'!F$4","v":0},{"$f":"H58*'Makro i swap'!G$4","v":0},{"$f":"I58*'Makro i swap'!H$4","v":0},{"$f":"J58*'Makro i swap'!I$4","v":0},{"$f":"K58*'Makro i swap'!J$4","v":0},{"$f":"L58*'Makro i swap'!K$4","v":0},{"$f":"M58*'Makro i swap'!L$4","v":0},{"$f":"N58*'Makro i swap'!M$4","v":0}]
["20 03 07",null,"PLN/Mg",null,null,0,{"$f":"F59*'Makro i swap'!E$4","v":0},{"$f":"G59*'Makro i swap'!F$4","v":0},{"$f":"H59*'Makro i swap'!G$4","v":0},{"$f":"I59*'Makro i swap'!H$4","v":0},{"$f":"J59*'Makro i swap'!I$4","v":0},{"$f":"K59*'Makro i swap'!J$4","v":0},{"$f":"L59*'Makro i swap'!K$4","v":0},{"$f":"M59*'Makro i swap'!L$4","v":0},{"$f":"N59*'Makro i swap'!M$4","v":0}]
["20 01 35, 20 01 36",null,"PLN/Mg",null,null,0,{"$f":"F60*'Makro i swap'!E$4","v":0},{"$f":"G60*'Makro i swap'!F$4","v":0},{"$f":"H60*'Makro i swap'!G$4","v":0},{"$f":"I60*'Makro i swap'!H$4","v":0},{"$f":"J60*'Makro i swap'!I$4","v":0},{"$f":"K60*'Makro i swap'!J$4","v":0},{"$f":"L60*'Makro i swap'!K$4","v":0},{"$f":"M60*'Makro i swap'!L$4","v":0},{"$f":"N60*'Makro i swap'!M$4","v":0}]
["17 01 podgrupa",null,"PLN/Mg",null,null,0,{"$f":"F61*'Makro i swap'!E$4","v":0},{"$f":"G61*'Makro i swap'!F$4","v":0},{"$f":"H61*'Makro i swap'!G$4","v":0},{"$f":"I61*'Makro i swap'!H$4","v":0},{"$f":"J61*'Makro i swap'!I$4","v":0},{"$f":"K61*'Makro i swap'!J$4","v":0},{"$f":"L61*'Makro i swap'!K$4","v":0},{"$f":"M61*'Makro i swap'!L$4","v":0},{"$f":"N61*'Makro i swap'!M$4","v":0}]
["16 01 03",null,"PLN/Mg",null,null,0,{"$f":"F62*'Makro i swap'!E$4","v":0},{"$f":"G62*'Makro i swap'!F$4","v":0},{"$f":"H62*'Makro i swap'!G$4","v":0},{"$f":"I62*'Makro i swap'!H$4","v":0},{"$f":"J62*'Makro i swap'!I$4","v":0},{"$f":"K62*'Makro i swap'!J$4","v":0},{"$f":"L62*'Makro i swap'!K$4","v":0},{"$f":"M62*'Makro i swap'!L$4","v":0},{"$f":"N62*'Makro i swap'!M$4","v":0}]
["20 03 99",null,"PLN/Mg",null,null,0,{"$f":"F63*'Makro i swap'!E$4","v":0},{"$f":"G63*'Makro i swap'!F$4","v":0},{"$f":"H63*'Makro i swap'!G$4","v":0},{"$f":"I63*'Makro i swap'!H$4","v":0},{"$f":"J63*'Makro i swap'!I$4","v":0},{"$f":"K63*'Makro i swap'!J$4","v":0},{"$f":"L63*'Makro i swap'!K$4","v":0},{"$f":"M63*'Makro i swap'!L$4","v":0},{"$f":"N63*'Makro i swap'!M$4","v":0}]
["20 01 01",null,"PLN/Mg",null,null,0,{"$f":"F64*'Makro i swap'!E$4","v":0},{"$f":"G64*'Makro i swap'!F$4","v":0},{"$f":"H64*'Makro i swap'!G$4","v":0},{"$f":"I64*'Makro i swap'!H$4","v":0},{"$f":"J64*'Makro i swap'!I$4","v":0},{"$f":"K64*'Makro i swap'!J$4","v":0},{"$f":"L64*'Makro i swap'!K$4","v":0},{"$f":"M64*'Makro i swap'!L$4","v":0},{"$f":"N64*'Makro i swap'!M$4","v":0}]
["20 01 02",null,"PLN/Mg",null,null,0,{"$f":"F65*'Makro i swap'!E$4","v":0},{"$f":"G65*'Makro i swap'!F$4","v":0},{"$f":"H65*'Makro i swap'!G$4","v":0},{"$f":"I65*'Makro i swap'!H$4","v":0},{"$f":"J65*'Makro i swap'!I$4","v":0},{"$f":"K65*'Makro i swap'!J$4","v":0},{"$f":"L65*'Makro i swap'!K$4","v":0},{"$f":"M65*'Makro i swap'!L$4","v":0},{"$f":"N65*'Makro i swap'!M$4","v":0}]
["15 01 02",null,"PLN/Mg",null,null,0,{"$f":"F66*'Makro i swap'!E$4","v":0},{"$f":"G66*'Makro i swap'!F$4","v":0},{"$f":"H66*'Makro i swap'!G$4","v":0},{"$f":"I66*'Makro i swap'!H$4","v":0},{"$f":"J66*'Makro i swap'!I$4","v":0},{"$f":"K66*'Makro i swap'!J$4","v":0},{"$f":"L66*'Makro i swap'!K$4","v":0},{"$f":"M66*'Makro i swap'!L$4","v":0},{"$f":"N66*'Makro i swap'!M$4","v":0}]
["20 01 40",null,"PLN/Mg",null,null,0,{"$f":"F67*'Makro i swap'!E$4","v":0},{"$f":"G67*'Makro i swap'!F$4","v":0},{"$f":"H67*'Makro i swap'!G$4","v":0},{"$f":"I67*'Makro i swap'!H$4","v":0},{"$f":"J67*'Makro i swap'!I$4","v":0},{"$f":"K67*'Makro i swap'!J$4","v":0},{"$f":"L67*'Makro i swap'!K$4","v":0},{"$f":"M67*'Makro i swap'!L$4","v":0},{"$f":"N67*'Makro i swap'!M$4","v":0}]
["Inne",null,"PLN/Mg",null,null,0,0,{"$f":"G68*'Makro i swap'!F$4","v":0},{"$f":"H68*'Makro i swap'!G$4","v":0},{"$f":"I68*'Makro i swap'!H$4","v":0},{"$f":"J68*'Makro i swap'!I$4","v":0},{"$f":"K68*'Makro i swap'!J$4","v":0},{"$f":"L68*'Makro i swap'!K$4","v":0},{"$f":"M68*'Makro i swap'!L$4","v":0},{"$f":"N68*'Makro i swap'!M$4","v":0}]
[]
["Zagospodarowanie odpadów – ilości"]
["20 03 01",null,"Mg",null,null,0,0,0,0,0,0,0,0,0,0]
["20 03 07",null,"Mg",null,null,0,0,0,0,0,0,0,0,0,0]
["20 01 35, 20 01 36",null,"Mg",null,null,0,0,0,0,0,0,0,0,0,0]
["17 01 podgrupa",null,"Mg",null,null,0,0,0,0,0,0,0,0,0,0]
["16 01 03",null,"Mg",null,null,0,0,0,0,0,0,0,0,0,0]
["20 03 99",null,"Mg",null,null,0,0,0,0,0,0,0,0,0,0]
["20 01 01",null,"Mg",null,null,0,0,0,0,0,0,0,0,0,0]
["20 01 02",null,"Mg",null,null,0,0,0,0,0,0,0,0,0,0]
["15 01 02",null,"Mg",null,null,0,0,0,0,0,0,0,0,0,0]
["20 01 40",null,"Mg",null,null,0,0,0,0,0,0,0,0,0,0]
["Inne",null,"Mg",null,null,0,0,0,0,0,0,0,0,0,0]
[]
["Przeglądy – samochód dostawczy"]
["Cena jednostkowa",null,"PLN/przegląd",null,null,0,{"$f":"F84*'Makro i swap'!E4","v":0},{"$f":"G84*'Makro i swap'!F4","v":0},{"$f":"H84*'Makro i swap'!G4","v":0},{"$f":"I84*'Makro i swap'!H4","v":0},{"$f":"J84*'Makro i swap'!I4","v":0},{"$f":"K84*'Makro i swap'!J4","v":0},{"$f":"L84*'Makro i swap'!K4","v":0},{"$f":"M84*'Makro i swap'!L4","v":0},{"$f":"N84*'Makro i swap'!M4","v":0}]
["Ilość",null,"przegląd",null,null,0,6,6,6,6,6,6,6,6,6]
[]
["Przeglądy – samochód ciężarowy"]
["Cena jednostkowa",null,"PLN/przegląd",null,null,0,{"$f":"F88*'Makro i swap'!E4","v":0},{"$f":"G88*'Makro i swap'!F4","v":0},{"$f":"H88*'Makro i swap'!G4","v":0},{"$f":"I88*'Makro i swap'!H4","v":0},{"$f":"J88*'Makro i swap'!I4","v":0},{"$f":"K88*'Makro i swap'!J4","v":0},{"$f":"L88*'Makro i swap'!K4","v":0},{"$f":"M88*'Makro i swap'!L4","v":0},{"$f":"N88*'Makro i swap'!M4","v":0}]
["Ilość",null,"przegląd",null,null,0,0,0,0,0,0,0,0,0,0]
[]
[]
["Podatki i opłaty – prognoza",null,"PLN",null,null,{"$f":"F93+F94","v":0},{"$f":"G93+G94","v":0},{"$f":"H93+H94","v":0},0,0,0,{"$f":"L93+L94","v":0},0,0,0]
["Koszty bezpośrednie",null,"PLN"]
["Koszty pośrednie",null,"PLN"]
["Klucz podziałowy"]
[]
["Podatki i opłaty – wartości rzeczywiste w danym roku",null,"PLN",null,null,null,null,{"$f":"IF(AND(H98=\"\",H99=\"\"),\"\",H98+H99)","v":""},"","","",{"$f":"IF(AND(L98=\"\",L99=\"\"),\"\",L98+L99)","v":""},"","",""]
["Koszty bezpośrednie",null,"PLN"]
["Koszty pośrednie",null,"PLN"]
[]
[]
[]
[]
["Wynagrodzenia oraz ubezpieczenia społeczne i inne świadczenia – prognoza",null,"PLN",null,null,0,0,0,0,0,0,0,0,{"$f":"N105+N106","v":0},0]
["Koszty bezpośrednie",null,"PLN",null,null,0,0,0,0,0,0,0,0,0,0]
["Koszty pośrednie",null,"PLN",null,null,0,0,{"$f":"H105*H107","v":0},0,0,0,0,0,{"$f":"N105*N107","v":0},0]
["Klucz podziałowy",null,null,null,null,0,0,0,0,0,0,0,0,0,0]
[]
["Wynagrodzenia oraz ubezpieczenia społeczne i inne świadczenia – wartości rzeczywiste w danym roku",null,"PLN",null,null,{"$f":"IF(AND(F110=\"\",F111=\"\"),\"\",F110+F111)","v":""},{"$f":"IF(AND(G110=\"\",G111=\"\"),\"\",G110+G111)","v":""},"","","","",{"$f":"IF(AND(L110=\"\",L111=\"\"),\"\",L110+L111)","v":""},"","",""]
["Koszty bezpośrednie",null,"PLN"]
["Koszty pośrednie",null,"PLN"]
[]
["Liczba roboczogodzin",null,"godz.",null,null,0,0,0,0,0,0,0,0,0,0]
["Stawka jednostkowa",null,"PLN/godz.",null,null,0,{"$f":"F114*'Makro i swap'!E4*'Makro i swap'!E5","v":0},{"$f":"G114*'Makro i swap'!F4*'Makro i swap'!F5","v":0},{"$f":"H114*'Makro i swap'!G4*'Makro i swap'!G5","v":0},{"$f":"I114*'Makro i swap'!H4*'Makro i swap'!H5","v":0},{"$f":"J114*'Makro i swap'!I4*'Makro i swap'!I5","v":0},{"$f":"K114*'Makro i swap'!J4*'Makro i swap'!J5","v":0},{"$f":"L114*'Makro i swap'!K4*'Makro i swap'!K5","v":0},{"$f":"M114*'Makro i swap'!L4*'Makro i swap'!L5","v":0},{"$f":"N114*'Makro i swap'!M4*'Makro i swap'!M5","v":0}]
[]
[]
["Pozostałe koszty rodzajowe – prognoza",null,"PLN",null,null,0,0,0,0,0,0,0,0,0,0]
["Koszty bezpośrednie",null,"PLN",null,null,0,0,0,0,0,0,0,0,0,0]
["Koszty pośrednie",null,"PLN",null,null,0,0,0,0,0,0,{"$f":"L118*L120","v":0},0,0,0]
["Klucz podziałowy",null,null,null,null,0,0,0,0,0,0,0,0,0,0]
[]
["Pozostałe koszty rodzajowe – wartości rzeczywiste w danym roku",null,"PLN",null,null,{"$f":"IF(AND(F123=\"\",F124=\"\"),\"\",F123+F124)","v":""},{"$f":"IF(AND(G123=\"\",G124=\"\"),\"\",G123+G124)","v":""},"","","","",{"$f":"IF(AND(L123=\"\",L124=\"\"),\"\",L123+L124)","v":""},"","",""]
["Koszty bezpośrednie",null,"PLN"]
["Koszty pośrednie",null,"PLN"]
[]
["Leasing"]
["Samochód dostawczy",null,null,null,null,0,0,0,0,0,0,0,0,0,0]
["Samochód ciężarowy",null,null,null,null,0,0,0,0,0,0,0,0,0,0]
[]
["Inne usługi związane z działaniami interwencyjnymi",null,null,null,null,{"$f":"F131+F132","v":0},0,0,0,0,0,0,0,0,0]
["Koszty bezpośrednie",null,"PLN",null,null,{"$f":"'Prace interwencyjne'!$E$8","v":0},{"$f":"F131*'Makro i swap'!E4","v":0},{"$f":"G131*'Makro i swap'!F4","v":0},{"$f":"H131*'Makro i swap'!G4","v":0},{"$f":"I131*'Makro i swap'!H4","v":0},{"$f":"J131*'Makro i swap'!I4","v":0},{"$f":"K131*'Makro i swap'!J4","v":0},{"$f":"L131*'Makro i swap'!K4","v":0},{"$f":"M131*'Makro i swap'!L4","v":0},{"$f":"N131*'Makro i swap'!M4","v":0}]
[]
[]
[]
[]
["Wartość sprzedanych towarów i materiałów – prognoza",null,"PLN"]
[]
["Wartość sprzedanych towarów i materiałów – wartości rzeczywiste w danym roku",null,"PLN"]
[]
[]
[]
[]
[]
["PRZYCHODY BEZPOŚREDNIO POWIĄZANE Z ZADANIEM",null,"Jednostka",null,null,{"$f":"F152","v":2023},{"$f":"F144+1","v":2024},{"$f":"G144+1","v":2025},2026,2027,2028,{"$f":"K144+1","v":2029},{"$f":"L144+1","v":2030},{"$f":"M144+1","v":2031},{"$f":"N144+1","v":2032}]
[]
["Wyszczególnienie",null,"PLN"]
["Wyszczególnienie",null,"PLN"]
["Przychody razem – PROGNOZA",null,"PLN",null,null,{"$f":"F146+F147","v":0},{"$f":"G146+G147","v":0},0,0,0,0,{"$f":"L146+L147","v":0},0,0,0]
["Przychody razem – WYKONANIE",null,"PLN"]
[]
[]
["UZYSKANE PRZYSPORZENIA",null,"Jednostka",null,null,{"$f":"F4","v":2023},{"$f":"F152+1","v":2024},{"$f":"G152+1","v":2025},2026,2027,2028,{"$f":"K152+1","v":2029},{"$f":"L152+1","v":2030},{"$f":"M152+1","v":2031},{"$f":"N152+1","v":2032}]
[]
["Dokapitalizowanie i inne przysporzenia ze środków publicznych związane z realizacją Zadania – PROGNOZA",null,"PLN"]
["Dokapitalizowanie i inne przysporzenia ze środków publicznych związane z realizacją Zadania – WYKONANIE",null,"PLN"]
[]
[]
["PRZYCHODY I KOSZTY FINANSOWE",null,null,null,null,{"$f":"F152","v":2023},{"$f":"F158+1","v":2024},{"$f":"G158+1","v":2025},2026,2027,2028,{"$f":"K158+1","v":2029},{"$f":"L158+1","v":2030},{"$f":"M158+1","v":2031},{"$f":"N158+1","v":2032}]
[]
["Przychody finansowe",null,"PLN"]
["Koszty finansowe",null,"PLN"]
["Pozostałe przychody operacyjne",null,"PLN"]
["Pozostałe koszty operacyjne",null,"PLN"]
[]
[]
["KARY",null,"Jednostka",null,null,{"$f":"F158","v":2023},{"$f":"F166+1","v":2024},2025,2026,2027,2028,{"$f":"K166+1","v":2029},{"$f":"L166+1","v":2030},{"$f":"M166+1","v":2031},{"$f":"N166+1","v":2032}]
[]
["Naliczone i zapłacone kary z tytułu nienależytej realizacji Zadania",null,"PLN"]

{"sheet":"Rekompensata>>","index":6,"n_rows":0,"n_cols":0,"rows_kept":0,"cut":false,"hidden":false,"merged":[]}

{"sheet":"Rekompensata ogółem","index":7,"n_rows":108,"n_cols":16,"rows_kept":108,"cut":false,"hidden":false,"merged":[[20,1,22,1]]}
[]
["WYNAGRODZENIE",null,"Jednostka",null,null,{"$f":"'Koszty netto_nieruch ogólnodost'!F4","v":2023},{"$f":"F2+1","v":2024},2025,2026,2027,2028,{"$f":"K2+1","v":2029},{"$f":"L2+1","v":2030},{"$f":"M2+1","v":2031},{"$f":"N2+1","v":2032},"RAZEM"]
[]
["Uzasadnione koszty netto",null,"PLN",null,null,0,{"$f":"G6+G7-G8-G9-G10+G11","v":0},0,0,0,0,{"$f":"L6+L7-L8-L9-L10+L11","v":0},0,0,0,{"$f":"SUM(F4:O4)","v":0}]
[]
["Koszty operacyjne",null,"PLN",null,null,{"$f":"'Koszty netto_nieruch ogólnodost'!F6","v":0},{"$f":"'Koszty netto_nieruch ogólnodost'!G6","v":0},{"$f":"'Koszty netto_nieruch ogólnodost'!H6","v":0},{"$f":"'Koszty netto_nieruch ogólnodost'!I6","v":0},{"$f":"'Koszty netto_nieruch ogólnodost'!J6","v":0},{"$f":"'Koszty netto_nieruch ogólnodost'!K6","v":0},{"$f":"'Koszty netto_nieruch ogólnodost'!L6","v":0},{"$f":"'Koszty netto_nieruch ogólnodost'!M6","v":0},{"$f":"'Koszty netto_nieruch ogólnodost'!N6","v":0},{"$f":"'Koszty netto_nieruch ogólnodost'!O6","v":0},{"$f":"SUM(F6:O6)","v":0}]
["Koszty finansowe oraz pozostałe koszty operacyjne",null,"PLN",null,null,{"$f":"'Koszty netto_nieruch ogólnodost'!F161+'Koszty netto_nieruch ogólnodost'!F163","v":0},{"$f":"'Koszty netto_nieruch ogólnodost'!G161+'Koszty netto_nieruch ogólnodost'!G163","v":0},{"$f":"'Koszty netto_nieruch ogólnodost'!H161+'Koszty netto_nieruch ogólnodost'!H163","v":0},{"$f":"'Koszty netto_nieruch ogólnodost'!I161+'Koszty netto_nieruch ogólnodost'!I163","v":0},{"$f":"'Koszty netto_nieruch ogólnodost'!J161+'Koszty netto_nieruch ogólnodost'!J163","v":0},{"$f":"'Koszty netto_nieruch ogólnodost'!K161+'Koszty netto_nieruch ogólnodost'!K163","v":0},{"$f":"'Koszty netto_nieruch ogólnodost'!L161+'Koszty netto_nieruch ogólnodost'!L163","v":0},{"$f":"'Koszty netto_nieruch ogólnodost'!M161+'Koszty netto_nieruch ogólnodost'!M163","v":0},{"$f":"'Koszty netto_nieruch ogólnodost'!N161+'Koszty netto_nieruch ogólnodost'!N163","v":0},{"$f":"'Koszty netto_nieruch ogólnodost'!O161+'Koszty netto_nieruch ogólnodost'!O163","v":0},{"$f":"SUM(F7:O7)","v":0}]
["Inne przysporzenia ze środków publicznych",null,"PLN",null,null,{"$f":"IF('Koszty netto_nieruch ogólnodost'!F155=\"\",'Koszty netto_nieruch ogólnodost'!F154,'Koszty netto_nieruch ogólnodost'!F155)","v":0},{"$f":"IF('Koszty netto_nieruch ogólnodost'!G155=\"\",'Koszty netto_nieruch ogólnodost'!G154,'Koszty netto_nieruch ogólnodost'!G155)","v":0},{"$f":"IF('Koszty netto_nieruch ogólnodost'!H155=\"\",'Koszty netto_nieruch ogólnodost'!H154,'Koszty netto_nieruch ogólnodost'!H155)","v":0},{"$f":"IF('Koszty netto_nieruch ogólnodost'!I155=\"\",'Koszty netto_nieruch ogólnodost'!I154,'Koszty netto_nieruch ogólnodost'!I155)","v":0},{"$f":"IF('Koszty netto_nieruch ogólnodost'!J155=\"\",'Koszty netto_nieruch ogólnodost'!J154,'Koszty netto_nieruch ogólnodost'!J155)","v":0},{"$f":"IF('Koszty netto_nieruch ogólnodost'!K155=\"\",'Koszty netto_nieruch ogólnodost'!K154,'Koszty netto_nieruch ogólnodost'!K155)","v":0},{"$f":"IF('Koszty netto_nieruch ogólnodost'!L155=\"\",'Koszty netto_nieruch ogólnodost'!L154,'Koszty netto_nieruch ogólnodost'!L155)","v":0},{"$f":"IF('Koszty netto_nieruch ogólnodost'!M155=\"\",'Koszty netto_nieruch ogólnodost'!M154,'Koszty netto_nieruch ogólnodost'!M155)","v":0},{"$f":"IF('Koszty netto_nieruch ogólnodost'!N155=\"\",'Koszty netto_nieruch ogólnodost'!N154,'Koszty netto_nieruch ogólnodost'!N155)","v":0},{"$f":"IF('Koszty netto_nieruch ogólnodost'!O155=\"\",'Koszty netto_nieruch ogólnodost'!O154,'Koszty netto_nieruch ogólnodost'!O155)","v":0},0]
["Przychody finansowe oraz pozostałe przychody operacyjne",null,"PLN",null,null,{"$f":"'Koszty netto_nieruch ogólnodost'!F160+'Koszty netto_nieruch ogólnodost'!F162","v":0},{"$f":"'Koszty netto_nieruch ogólnodost'!G160+'Koszty netto_nieruch ogólnodost'!G162","v":0},{"$f":"'Koszty netto_nieruch ogólnodost'!H160+'Koszty netto_nieruch ogólnodost'!H162","v":0},{"$f":"'Koszty netto_nieruch ogólnodost'!I160+'Koszty netto_nieruch ogólnodost'!I162","v":0},{"$f":"'Koszty netto_nieruch ogólnodost'!J160+'Koszty netto_nieruch ogólnodost'!J162","v":0},{"$f":"'Koszty netto_nieruch ogólnodost'!K160+'Koszty netto_nieruch ogólnodost'!K162","v":0},{"$f":"'Koszty netto_nieruch ogólnodost'!L160+'Koszty netto_nieruch ogólnodost'!L162","v":0},{"$f":"'Koszty netto_nieruch ogólnodost'!M160+'Koszty netto_nieruch ogólnodost'!M162","v":0},{"$f":"'Koszty netto_nieruch ogólnodost'!N160+'Koszty netto_nieruch ogólnodost'!N162","v":0},{"$f":"'Koszty netto_nieruch ogólnodost'!O160+'Koszty netto_nieruch ogólnodost'!O162","v":0},0]
["Przychody bezpośrednio powiązane z Zadaniem",null,"PLN",null,null,{"$f":"IF('Koszty netto_nieruch ogólnodost'!F149=\"\",'Koszty netto_nieruch ogólnodost'!F148,'Koszty netto_nieruch ogólnodost'!F149)","v":0},{"$f":"IF('Koszty netto_nieruch ogólnodost'!G149=\"\",'Koszty netto_nieruch ogólnodost'!G148,'Koszty netto_nieruch ogólnodost'!G149)","v":0},{"$f":"IF('Koszty netto_nieruch ogólnodost'!H149=\"\",'Koszty netto_nieruch ogólnodost'!H148,'Koszty netto_nieruch ogólnodost'!H149)","v":0},{"$f":"IF('Koszty netto_nieruch ogólnodost'!I149=\"\",'Koszty netto_nieruch ogólnodost'!I148,'Koszty netto_nieruch ogólnodost'!I149)","v":0},{"$f":"IF('Koszty netto_nieruch ogólnodost'!J149=\"\",'Koszty netto_nieruch ogólnodost'!J148,'Koszty netto_nieruch ogólnodost'!J149)","v":0},{"$f":"IF('Koszty netto_nieruch ogólnodost'!K149=\"\",'Koszty netto_nieruch ogólnodost'!K148,'Koszty netto_nieruch ogólnodost'!K149)","v":0},{"$f":"IF('Koszty netto_nieruch ogólnodost'!L149=\"\",'Koszty netto_nieruch ogólnodost'!L148,'Koszty netto_nieruch ogólnodost'!L149)","v":0},{"$f":"IF('Koszty netto_nieruch ogólnodost'!M149=\"\",'Koszty netto_nieruch ogólnodost'!M148,'Koszty netto_nieruch ogólnodost'!M149)","v":0},{"$f":"IF('Koszty netto_nieruch ogólnodost'!N149=\"\",'Koszty netto_nieruch ogólnodost'!N148,'Koszty netto_nieruch ogólnodost'!N149)","v":0},{"$f":"IF('Koszty netto_nieruch ogólnodost'!O149=\"\",'Koszty netto_nieruch ogólnodost'!O148,'Koszty netto_nieruch ogólnodost'!O149)","v":0},0]
["Podatek dochodowy",null,"PLN",null,null,0,0,0,0,0,0,0,0,0,0,0]
[]
[null,null,null,null,"19%*rozsądny zysk"]
["Rozsądny zysk",null,"PLN",null,null,0,0,0,0,0,0,0,0,0,0,0]
[]
["Należna Rekompensata z uwzględnieniem Rozsądnego zysku – prognoza",null,"PLN",1.0126446301911913,null,0,{"$f":"G4+G14","v":0},0,0,0,0,{"$f":"L4+L14","v":0},0,0,0,{"$f":"SUM(F16:K16)","v":0}]
[]
["Przychody od Dysponenta – odpady",null,"PLN",null,null,{"$f":"SUMPRODUCT(F92:F102,F45:F55)","v":0},{"$f":"SUMPRODUCT(G92:G102,G45:G55)","v":0},{"$f":"SUMPRODUCT(H92:H102,H45:H55)","v":0},{"$f":"SUMPRODUCT(I92:I102,I45:I55)","v":0},0,0,{"$f":"SUMPRODUCT(L92:L102,L45:L55)","v":0},0,0,0,{"$f":"SUM(F18:K18)","v":0}]
[]
["Przychody od Dysponenta – pozostałe usługi",null,"PLN",null,null,0,0,0,0,0,0,0,0,0,0,0]
[null,"% ",null,null,null,null,null,null,null,null,"% "]
[]
["Maksymalna wartość Rozsądnego zysku",null,{"$f":"'Makro i swap'!C9+'Makro i swap'!C8","v":3.5400000000000001E-2}]
[]
["Weryfikacja Rozsądnego zysku",null,"Jednostka",null,null,{"$f":"F2","v":2023},{"$f":"F25+1","v":2024},{"$f":"G25+1","v":2025},{"$f":"H25+1","v":2026},{"$f":"I25+1","v":2027},{"$f":"J25+1","v":2028},{"$f":"K25+1","v":2029},{"$f":"L25+1","v":2030},{"$f":"M25+1","v":2031},{"$f":"N25+1","v":2032}]
["Kapitał własny na początek okresu",null,null,null,null,0,0,{"$f":"G26*'Makro i swap'!F4","v":0},{"$f":"H26*'Makro i swap'!G4","v":0},{"$f":"I26*'Makro i swap'!H4","v":0},{"$f":"J26*'Makro i swap'!I4","v":0},{"$f":"K26*'Makro i swap'!J4","v":0},{"$f":"L26*'Makro i swap'!K4","v":0},{"$f":"M26*'Makro i swap'!L4","v":0},{"$f":"N26*'Makro i swap'!M4","v":0}]
["Kapitał własny na koniec okresu",null,null,null,null,0,0,0,0,0,0,0,0,0,0]
["Średni kapitał własny Spółki",null,null,null,null,{"$f":"(F26+F27)/2","v":0},{"$f":"(G26+G27)/2","v":0},0,0,0,0,{"$f":"(L26+L27)/2","v":0},0,0,0]
[null,null,null,null,null,0]
["Przychody ze sprzedaży ogółem",null,null,null,null,0,{"$f":"F30*'Makro i swap'!E4","v":0},{"$f":"G30*'Makro i swap'!F4","v":0},{"$f":"H30*'Makro i swap'!G4","v":0},{"$f":"I30*'Makro i swap'!H4","v":0},{"$f":"J30*'Makro i swap'!I4","v":0},{"$f":"K30*'Makro i swap'!J4","v":0},{"$f":"L30*'Makro i swap'!K4","v":0},{"$f":"M30*'Makro i swap'!L4","v":0},{"$f":"N30*'Makro i swap'!M4","v":0}]
["Przychody z tyt. realizacji Zadania",null,null,null,null,{"$f":"F18+F10+F9+F20","v":0},{"$f":"G18+G10+G9+G20","v":0},0,0,0,0,{"$f":"L18+L10+L9+L20","v":0},0,0,0]
["Udział przychodowy",null,null,null,null,0,0,0,0,0,0,0,0,0,0]
[]
["Kapitał własny będący podstawą kalkulacji stopy zwrotu z kapitału własnego",null,null,null,null,{"$f":"F28*F32","v":0},0,0,0,0,0,0,0,0,0]
["Kwota Rozsądnego zysku",null,null,null,null,{"$f":"F14","v":0},{"$f":"G14","v":0},0,0,0,0,0,0,0,0]
["Stopa zwrotu z kapitału własnego",null,null,null,null,0,0,0,0,0,0,0,0,0,0]
[null,null,null,null,null,{"$f":"F36*100","v":0},{"$f":"G36*100","v":0},0,0,0,0,{"$f":"L36*100","v":0},0,0,0]
["Czy Rozsądny zysk jest nadmierny?",null,null,null,null,{"$f":"IF(F36<=$C$23,\"NIE\",\"TAK\")","v":"NIE"},0,0,0,0,0,0,0,0,0]
["Udział Rozsądnego zysku dla zagospodarowania odpadów",null,null,null,null,0,0,0,0,0,0,0,0,0,0]
["Udział Rozsądnego zysku dla prac interwencyjnych",null,null,null,null,0,0,0,0,0,0,0,0,0,0]
["Kalkulacja stawek",null,"Jednostka",null,null,{"$f":"F25","v":2023},{"$f":"F41+1","v":2024},{"$f":"G41+1","v":2025},{"$f":"H41+1","v":2026},{"$f":"I41+1","v":2027},{"$f":"J41+1","v":2028},{"$f":"K41+1","v":2029},2030,2031,2032]
[{"$f":"#REF!*100","v":{"$error":"#REF!"}}]
["Należna rekompensata z Rozsądnym zyskiem dla zagospodarowania odpadów",null,"PLN",null,null,0,0,0,0,0,0,0,0,0,0]
["Należna rekompensata z Rozsądnym zyskiem dla prac interwencyjnych",null,"PLN",null,null,0,0,0,0,0,0,0,0,0,0]
["Ilość odpadów 20 03 01",null,"Mg",null,null,0,0,0,0,0,0,0,0,0,0]
["Ilość odpadów 20 03 07",null,"Mg",null,null,0,0,0,0,0,0,0,0,0,0]
["Ilość odpadów 20 01 35, 20 01 36",null,"Mg",null,null,0,0,0,0,0,{"$f":"Odpady!K7","v":0},0,0,0,0]
["Ilość odpadów 17 01 podgrupa",null,"Mg",null,null,0,0,0,0,0,0,0,0,0,0]
["Ilość odpadów 16 01 03",null,"Mg",null,null,0,0,0,0,0,0,0,0,0,0]
["Ilość odpadów 20 03 99",null,"Mg",null,null,0,0,0,0,0,0,0,0,0,0]
["Ilość odpadów 20 01 01",null,"Mg",null,null,0,0,0,0,0,0,0,0,0,0]
["Ilość odpadów 20 01 02",null,"Mg",null,null,0,0,0,0,0,0,0,0,0,0]
["Ilość odpadów 15 01 02",null,"Mg",null,null,0,0,0,0,0,0,0,0,0,0]
["Ilość odpadów 20 01 40",null,"Mg",null,null,0,0,0,0,0,0,0,0,0,0]
["Inne",null,"Mg",null,null,0,0,0,0,0,0,0,0,0,0]
["Ilość odpadów RAZEM",null,"Mg",null,null,0,0,0,0,0,0,0,0,0,0]
[]
["Udział odpadów"]
["20 03 01",null,"%",null,null,0,0,0,0,0,0,0,0,0,0]
["20 03 07",null,"%",null,null,0,0,0,0,0,0,0,0,0,0]
["20 01 35, 20 01 36",null,"%",null,null,0,0,0,0,0,0,0,0,0,0]
["17 01 podgrupa",null,"%",null,null,0,0,0,0,0,0,0,0,0,0]
["16 01 03",null,"%",null,null,0,0,0,0,0,0,0,0,0,0]
["20 03 99",null,"%",null,null,0,0,0,0,0,0,0,0,0,0]
["20 01 01",null,"%",null,null,0,0,0,0,0,0,0,0,0,0]
["20 01 02",null,"%",null,null,0,0,0,0,0,0,0,0,0,0]
["15 01 02",null,"%",null,null,0,0,0,0,0,0,0,0,0,0]
["20 01 40",null,"%",null,null,0,0,0,0,0,0,0,0,0,0]
["Inne",null,"%",null,null,0,0,0,0,0,0,0,0,0,0]
[null,null,null,null,null,null,null,null,null,null,0]
["Należna rekompensata według kodu odpadów"]
["20 03 01",null,"PLN",null,null,{"$f":"(F$43-SUMPRODUCT('Koszty netto_nieruch ogólnodost'!F$58:F$68,'Koszty netto_nieruch ogólnodost'!F$71:F$81))*F59+'Koszty netto_nieruch ogólnodost'!F58*'Koszty netto_nieruch ogólnodost'!F71","v":0},{"$f":"(G$43-SUMPRODUCT('Koszty netto_nieruch ogólnodost'!G$58:G$68,'Koszty netto_nieruch ogólnodost'!G$71:G$81))*G59+'Koszty netto_nieruch ogólnodost'!G58*'Koszty netto_nieruch ogólnodost'!G71","v":0},{"$f":"(H$43-SUMPRODUCT('Koszty netto_nieruch ogólnodost'!H$58:H$68,'Koszty netto_nieruch ogólnodost'!H$71:H$81))*H59+'Koszty netto_nieruch ogólnodost'!H58*'Koszty netto_nieruch ogólnodost'!H71","v":0},{"$f":"(I$43-SUMPRODUCT('Koszty netto_nieruch ogólnodost'!I$58:I$68,'Koszty netto_nieruch ogólnodost'!I$71:I$81))*I59+'Koszty netto_nieruch ogólnodost'!I58*'Koszty netto_nieruch ogólnodost'!I71","v":0},{"$f":"(J$43-SUMPRODUCT('Koszty netto_nieruch ogólnodost'!J$58:J$68,'Koszty netto_nieruch ogólnodost'!J$71:J$81))*J59+'Koszty netto_nieruch ogólnodost'!J58*'Koszty netto_nieruch ogólnodost'!J71","v":0},{"$f":"(K$43-SUMPRODUCT('Koszty netto_nieruch ogólnodost'!K$58:K$68,'Koszty netto_nieruch ogólnodost'!K$71:K$81))*K59+'Koszty netto_nieruch ogólnodost'!K58*'Koszty netto_nieruch ogólnodost'!K71","v":0},{"$f":"(L$43-SUMPRODUCT('Koszty netto_nieruch ogólnodost'!L$58:L$68,'Koszty netto_nieruch ogólnodost'!L$71:L$81))*L59+'Koszty netto_nieruch ogólnodost'!L58*'Koszty netto_nieruch ogólnodost'!L71","v":0},{"$f":"(M$43-SUMPRODUCT('Koszty netto_nieruch ogólnodost'!M$58:M$68,'Koszty netto_nieruch ogólnodost'!M$71:M$81))*M59+'Koszty netto_nieruch ogólnodost'!M58*'Koszty netto_nieruch ogólnodost'!M71","v":0},{"$f":"(N$43-SUMPRODUCT('Koszty netto_nieruch ogólnodost'!N$58:N$68,'Koszty netto_nieruch ogólnodost'!N$71:N$81))*N59+'Koszty netto_nieruch ogólnodost'!N58*'Koszty netto_nieruch ogólnodost'!N71","v":0},{"$f":"(O$43-SUMPRODUCT('Koszty netto_nieruch ogólnodost'!O$58:O$68,'Koszty netto_nieruch ogólnodost'!O$71:O$81))*O59+'Koszty netto_nieruch ogólnodost'!O58*'Koszty netto_nieruch ogólnodost'!O71","v":0}]
["20 03 07",null,"PLN",null,null,{"$f":"(F$43-SUMPRODUCT('Koszty netto_nieruch ogólnodost'!F$58:F$68,'Koszty netto_nieruch ogólnodost'!F$71:F$81))*F60+'Koszty netto_nieruch ogólnodost'!F59*'Koszty netto_nieruch ogólnodost'!F72","v":0},{"$f":"(G$43-SUMPRODUCT('Koszty netto_nieruch ogólnodost'!G$58:G$68,'Koszty netto_nieruch ogólnodost'!G$71:G$81))*G60+'Koszty netto_nieruch ogólnodost'!G59*'Koszty netto_nieruch ogólnodost'!G72","v":0},{"$f":"(H$43-SUMPRODUCT('Koszty netto_nieruch ogólnodost'!H$58:H$68,'Koszty netto_nieruch ogólnodost'!H$71:H$81))*H60+'Koszty netto_nieruch ogólnodost'!H59*'Koszty netto_nieruch ogólnodost'!H72","v":0},{"$f":"(I$43-SUMPRODUCT('Koszty netto_nieruch ogólnodost'!I$58:I$68,'Koszty netto_nieruch ogólnodost'!I$71:I$81))*I60+'Koszty netto_nieruch ogólnodost'!I59*'Koszty netto_nieruch ogólnodost'!I72","v":0},{"$f":"(J$43-SUMPRODUCT('Koszty netto_nieruch ogólnodost'!J$58:J$68,'Koszty netto_nieruch ogólnodost'!J$71:J$81))*J60+'Koszty netto_nieruch ogólnodost'!J59*'Koszty netto_nieruch ogólnodost'!J72","v":0},{"$f":"(K$43-SUMPRODUCT('Koszty netto_nieruch ogólnodost'!K$58:K$68,'Koszty netto_nieruch ogólnodost'!K$71:K$81))*K60+'Koszty netto_nieruch ogólnodost'!K59*'Koszty netto_nieruch ogólnodost'!K72","v":0},{"$f":"(L$43-SUMPRODUCT('Koszty netto_nieruch ogólnodost'!L$58:L$68,'Koszty netto_nieruch ogólnodost'!L$71:L$81))*L60+'Koszty netto_nieruch ogólnodost'!L59*'Koszty netto_nieruch ogólnodost'!L72","v":0},{"$f":"(M$43-SUMPRODUCT('Koszty netto_nieruch ogólnodost'!M$58:M$68,'Koszty netto_nieruch ogólnodost'!M$71:M$81))*M60+'Koszty netto_nieruch ogólnodost'!M59*'Koszty netto_nieruch ogólnodost'!M72","v":0},{"$f":"(N$43-SUMPRODUCT('Koszty netto_nieruch ogólnodost'!N$58:N$68,'Koszty netto_nieruch ogólnodost'!N$71:N$81))*N60+'Koszty netto_nieruch ogólnodost'!N59*'Koszty netto_nieruch ogólnodost'!N72","v":0},{"$f":"(O$43-SUMPRODUCT('Koszty netto_nieruch ogólnodost'!O$58:O$68,'Koszty netto_nieruch ogólnodost'!O$71:O$81))*O60+'Koszty netto_nieruch ogólnodost'!O59*'Koszty netto_nieruch ogólnodost'!O72","v":0}]
["20 01 35, 20 01 36",null,"PLN",null,null,{"$f":"(F$43-SUMPRODUCT('Koszty netto_nieruch ogólnodost'!F$58:F$68,'Koszty netto_nieruch ogólnodost'!F$71:F$81))*F61+'Koszty netto_nieruch ogólnodost'!F60*'Koszty netto_nieruch ogólnodost'!F73","v":0},{"$f":"(G$43-SUMPRODUCT('Koszty netto_nieruch ogólnodost'!G$58:G$68,'Koszty netto_nieruch ogólnodost'!G$71:G$81))*G61+'Koszty netto_nieruch ogólnodost'!G60*'Koszty netto_nieruch ogólnodost'!G73","v":0},{"$f":"(H$43-SUMPRODUCT('Koszty netto_nieruch ogólnodost'!H$58:H$68,'Koszty netto_nieruch ogólnodost'!H$71:H$81))*H61+'Koszty netto_nieruch ogólnodost'!H60*'Koszty netto_nieruch ogólnodost'!H73","v":0},{"$f":"(I$43-SUMPRODUCT('Koszty netto_nieruch ogólnodost'!I$58:I$68,'Koszty netto_nieruch ogólnodost'!I$71:I$81))*I61+'Koszty netto_nieruch ogólnodost'!I60*'Koszty netto_nieruch ogólnodost'!I73","v":0},{"$f":"(J$43-SUMPRODUCT('Koszty netto_nieruch ogólnodost'!J$58:J$68,'Koszty netto_nieruch ogólnodost'!J$71:J$81))*J61+'Koszty netto_nieruch ogólnodost'!J60*'Koszty netto_nieruch ogólnodost'!J73","v":0},{"$f":"(K$43-SUMPRODUCT('Koszty netto_nieruch ogólnodost'!K$58:K$68,'Koszty netto_nieruch ogólnodost'!K$71:K$81))*K61+'Koszty netto_nieruch ogólnodost'!K60*'Koszty netto_nieruch ogólnodost'!K73","v":0},{"$f":"(L$43-SUMPRODUCT('Koszty netto_nieruch ogólnodost'!L$58:L$68,'Koszty netto_nieruch ogólnodost'!L$71:L$81))*L61+'Koszty netto_nieruch ogólnodost'!L60*'Koszty netto_nieruch ogólnodost'!L73","v":0},{"$f":"(M$43-SUMPRODUCT('Koszty netto_nieruch ogólnodost'!M$58:M$68,'Koszty netto_nieruch ogólnodost'!M$71:M$81))*M61+'Koszty netto_nieruch ogólnodost'!M60*'Koszty netto_nieruch ogólnodost'!M73","v":0},{"$f":"(N$43-SUMPRODUCT('Koszty netto_nieruch ogólnodost'!N$58:N$68,'Koszty netto_nieruch ogólnodost'!N$71:N$81))*N61+'Koszty netto_nieruch ogólnodost'!N60*'Koszty netto_nieruch ogólnodost'!N73","v":0},{"$f":"(O$43-SUMPRODUCT('Koszty netto_nieruch ogólnodost'!O$58:O$68,'Koszty netto_nieruch ogólnodost'!O$71:O$81))*O61+'Koszty netto_nieruch ogólnodost'!O60*'Koszty netto_nieruch ogólnodost'!O73","v":0}]
["17 01 podgrupa",null,"PLN",null,null,{"$f":"(F$43-SUMPRODUCT('Koszty netto_nieruch ogólnodost'!F$58:F$68,'Koszty netto_nieruch ogólnodost'!F$71:F$81))*F62+'Koszty netto_nieruch ogólnodost'!F61*'Koszty netto_nieruch ogólnodost'!F74","v":0},{"$f":"(G$43-SUMPRODUCT('Koszty netto_nieruch ogólnodost'!G$58:G$68,'Koszty netto_nieruch ogólnodost'!G$71:G$81))*G62+'Koszty netto_nieruch ogólnodost'!G61*'Koszty netto_nieruch ogólnodost'!G74","v":0},{"$f":"(H$43-SUMPRODUCT('Koszty netto_nieruch ogólnodost'!H$58:H$68,'Koszty netto_nieruch ogólnodost'!H$71:H$81))*H62+'Koszty netto_nieruch ogólnodost'!H61*'Koszty netto_nieruch ogólnodost'!H74","v":0},{"$f":"(I$43-SUMPRODUCT('Koszty netto_nieruch ogólnodost'!I$58:I$68,'Koszty netto_nieruch ogólnodost'!I$71:I$81))*I62+'Koszty netto_nieruch ogólnodost'!I61*'Koszty netto_nieruch ogólnodost'!I74","v":0},{"$f":"(J$43-SUMPRODUCT('Koszty netto_nieruch ogólnodost'!J$58:J$68,'Koszty netto_nieruch ogólnodost'!J$71:J$81))*J62+'Koszty netto_nieruch ogólnodost'!J61*'Koszty netto_nieruch ogólnodost'!J74","v":0},{"$f":"(K$43-SUMPRODUCT('Koszty netto_nieruch ogólnodost'!K$58:K$68,'Koszty netto_nieruch ogólnodost'!K$71:K$81))*K62+'Koszty netto_nieruch ogólnodost'!K61*'Koszty netto_nieruch ogólnodost'!K74","v":0},{"$f":"(L$43-SUMPRODUCT('Koszty netto_nieruch ogólnodost'!L$58:L$68,'Koszty netto_nieruch ogólnodost'!L$71:L$81))*L62+'Koszty netto_nieruch ogólnodost'!L61*'Koszty netto_nieruch ogólnodost'!L74","v":0},{"$f":"(M$43-SUMPRODUCT('Koszty netto_nieruch ogólnodost'!M$58:M$68,'Koszty netto_nieruch ogólnodost'!M$71:M$81))*M62+'Koszty netto_nieruch ogólnodost'!M61*'Koszty netto_nieruch ogólnodost'!M74","v":0},{"$f":"(N$43-SUMPRODUCT('Koszty netto_nieruch ogólnodost'!N$58:N$68,'Koszty netto_nieruch ogólnodost'!N$71:N$81))*N62+'Koszty netto_nieruch ogólnodost'!N61*'Koszty netto_nieruch ogólnodost'!N74","v":0},{"$f":"(O$43-SUMPRODUCT('Koszty netto_nieruch ogólnodost'!O$58:O$68,'Koszty netto_nieruch ogólnodost'!O$71:O$81))*O62+'Koszty netto_nieruch ogólnodost'!O61*'Koszty netto_nieruch ogólnodost'!O74","v":0}]
["16 01 03",null,"PLN",null,null,{"$f":"(F$43-SUMPRODUCT('Koszty netto_nieruch ogólnodost'!F$58:F$68,'Koszty netto_nieruch ogólnodost'!F$71:F$81))*F63+'Koszty netto_nieruch ogólnodost'!F62*'Koszty netto_nieruch ogólnodost'!F75","v":0},{"$f":"(G$43-SUMPRODUCT('Koszty netto_nieruch ogólnodost'!G$58:G$68,'Koszty netto_nieruch ogólnodost'!G$71:G$81))*G63+'Koszty netto_nieruch ogólnodost'!G62*'Koszty netto_nieruch ogólnodost'!G75","v":0},{"$f":"(H$43-SUMPRODUCT('Koszty netto_nieruch ogólnodost'!H$58:H$68,'Koszty netto_nieruch ogólnodost'!H$71:H$81))*H63+'Koszty netto_nieruch ogólnodost'!H62*'Koszty netto_nieruch ogólnodost'!H75","v":0},{"$f":"(I$43-SUMPRODUCT('Koszty netto_nieruch ogólnodost'!I$58:I$68,'Koszty netto_nieruch ogólnodost'!I$71:I$81))*I63+'Koszty netto_nieruch ogólnodost'!I62*'Koszty netto_nieruch ogólnodost'!I75","v":0},{"$f":"(J$43-SUMPRODUCT('Koszty netto_nieruch ogólnodost'!J$58:J$68,'Koszty netto_nieruch ogólnodost'!J$71:J$81))*J63+'Koszty netto_nieruch ogólnodost'!J62*'Koszty netto_nieruch ogólnodost'!J75","v":0},{"$f":"(K$43-SUMPRODUCT('Koszty netto_nieruch ogólnodost'!K$58:K$68,'Koszty netto_nieruch ogólnodost'!K$71:K$81))*K63+'Koszty netto_nieruch ogólnodost'!K62*'Koszty netto_nieruch ogólnodost'!K75","v":0},{"$f":"(L$43-SUMPRODUCT('Koszty netto_nieruch ogólnodost'!L$58:L$68,'Koszty netto_nieruch ogólnodost'!L$71:L$81))*L63+'Koszty netto_nieruch ogólnodost'!L62*'Koszty netto_nieruch ogólnodost'!L75","v":0},{"$f":"(M$43-SUMPRODUCT('Koszty netto_nieruch ogólnodost'!M$58:M$68,'Koszty netto_nieruch ogólnodost'!M$71:M$81))*M63+'Koszty netto_nieruch ogólnodost'!M62*'Koszty netto_nieruch ogólnodost'!M75","v":0},{"$f":"(N$43-SUMPRODUCT('Koszty netto_nieruch ogólnodost'!N$58:N$68,'Koszty netto_nieruch ogólnodost'!N$71:N$81))*N63+'Koszty netto_nieruch ogólnodost'!N62*'Koszty netto_nieruch ogólnodost'!N75","v":0},{"$f":"(O$43-SUMPRODUCT('Koszty netto_nieruch ogólnodost'!O$58:O$68,'Koszty netto_nieruch ogólnodost'!O$71:O$81))*O63+'Koszty netto_nieruch ogólnodost'!O62*'Koszty netto_nieruch ogólnodost'!O75","v":0}]
["20 03 99",null,"PLN",null,null,{"$f":"(F$43-SUMPRODUCT('Koszty netto_nieruch ogólnodost'!F$58:F$68,'Koszty netto_nieruch ogólnodost'!F$71:F$81))*F64+'Koszty netto_nieruch ogólnodost'!F63*'Koszty netto_nieruch ogólnodost'!F76","v":0},{"$f":"(G$43-SUMPRODUCT('Koszty netto_nieruch ogólnodost'!G$58:G$68,'Koszty netto_nieruch ogólnodost'!G$71:G$81))*G64+'Koszty netto_nieruch ogólnodost'!G63*'Koszty netto_nieruch ogólnodost'!G76","v":0},{"$f":"(H$43-SUMPRODUCT('Koszty netto_nieruch ogólnodost'!H$58:H$68,'Koszty netto_nieruch ogólnodost'!H$71:H$81))*H64+'Koszty netto_nieruch ogólnodost'!H63*'Koszty netto_nieruch ogólnodost'!H76","v":0},{"$f":"(I$43-SUMPRODUCT('Koszty netto_nieruch ogólnodost'!I$58:I$68,'Koszty netto_nieruch ogólnodost'!I$71:I$81))*I64+'Koszty netto_nieruch ogólnodost'!I63*'Koszty netto_nieruch ogólnodost'!I76","v":0},{"$f":"(J$43-SUMPRODUCT('Koszty netto_nieruch ogólnodost'!J$58:J$68,'Koszty netto_nieruch ogólnodost'!J$71:J$81))*J64+'Koszty netto_nieruch ogólnodost'!J63*'Koszty netto_nieruch ogólnodost'!J76","v":0},{"$f":"(K$43-SUMPRODUCT('Koszty netto_nieruch ogólnodost'!K$58:K$68,'Koszty netto_nieruch ogólnodost'!K$71:K$81))*K64+'Koszty netto_nieruch ogólnodost'!K63*'Koszty netto_nieruch ogólnodost'!K76","v":0},{"$f":"(L$43-SUMPRODUCT('Koszty netto_nieruch ogólnodost'!L$58:L$68,'Koszty netto_nieruch ogólnodost'!L$71:L$81))*L64+'Koszty netto_nieruch ogólnodost'!L63*'Koszty netto_nieruch ogólnodost'!L76","v":0},{"$f":"(M$43-SUMPRODUCT('Koszty netto_nieruch ogólnodost'!M$58:M$68,'Koszty netto_nieruch ogólnodost'!M$71:M$81))*M64+'Koszty netto_nieruch ogólnodost'!M63*'Koszty netto_nieruch ogólnodost'!M76","v":0},{"$f":"(N$43-SUMPRODUCT('Koszty netto_nieruch ogólnodost'!N$58:N$68,'Koszty netto_nieruch ogólnodost'!N$71:N$81))*N64+'Koszty netto_nieruch ogólnodost'!N63*'Koszty netto_nieruch ogólnodost'!N76","v":0},{"$f":"(O$43-SUMPRODUCT('Koszty netto_nieruch ogólnodost'!O$58:O$68,'Koszty netto_nieruch ogólnodost'!O$71:O$81))*O64+'Koszty netto_nieruch ogólnodost'!O63*'Koszty netto_nieruch ogólnodost'!O76","v":0}]
["20 01 01",null,"PLN",null,null,{"$f":"(F$43-SUMPRODUCT('Koszty netto_nieruch ogólnodost'!F$58:F$68,'Koszty netto_nieruch ogólnodost'!F$71:F$81))*F65+'Koszty netto_nieruch ogólnodost'!F64*'Koszty netto_nieruch ogólnodost'!F77","v":0},{"$f":"(G$43-SUMPRODUCT('Koszty netto_nieruch ogólnodost'!G$58:G$68,'Koszty netto_nieruch ogólnodost'!G$71:G$81))*G65+'Koszty netto_nieruch ogólnodost'!G64*'Koszty netto_nieruch ogólnodost'!G77","v":0},{"$f":"(H$43-SUMPRODUCT('Koszty netto_nieruch ogólnodost'!H$58:H$68,'Koszty netto_nieruch ogólnodost'!H$71:H$81))*H65+'Koszty netto_nieruch ogólnodost'!H64*'Koszty netto_nieruch ogólnodost'!H77","v":0},{"$f":"(I$43-SUMPRODUCT('Koszty netto_nieruch ogólnodost'!I$58:I$68,'Koszty netto_nieruch ogólnodost'!I$71:I$81))*I65+'Koszty netto_nieruch ogólnodost'!I64*'Koszty netto_nieruch ogólnodost'!I77","v":0},{"$f":"(J$43-SUMPRODUCT('Koszty netto_nieruch ogólnodost'!J$58:J$68,'Koszty netto_nieruch ogólnodost'!J$71:J$81))*J65+'Koszty netto_nieruch ogólnodost'!J64*'Koszty netto_nieruch ogólnodost'!J77","v":0},{"$f":"(K$43-SUMPRODUCT('Koszty netto_nieruch ogólnodost'!K$58:K$68,'Koszty netto_nieruch ogólnodost'!K$71:K$81))*K65+'Koszty netto_nieruch ogólnodost'!K64*'Koszty netto_nieruch ogólnodost'!K77","v":0},{"$f":"(L$43-SUMPRODUCT('Koszty netto_nieruch ogólnodost'!L$58:L$68,'Koszty netto_nieruch ogólnodost'!L$71:L$81))*L65+'Koszty netto_nieruch ogólnodost'!L64*'Koszty netto_nieruch ogólnodost'!L77","v":0},{"$f":"(M$43-SUMPRODUCT('Koszty netto_nieruch ogólnodost'!M$58:M$68,'Koszty netto_nieruch ogólnodost'!M$71:M$81))*M65+'Koszty netto_nieruch ogólnodost'!M64*'Koszty netto_nieruch ogólnodost'!M77","v":0},{"$f":"(N$43-SUMPRODUCT('Koszty netto_nieruch ogólnodost'!N$58:N$68,'Koszty netto_nieruch ogólnodost'!N$71:N$81))*N65+'Koszty netto_nieruch ogólnodost'!N64*'Koszty netto_nieruch ogólnodost'!N77","v":0},{"$f":"(O$43-SUMPRODUCT('Koszty netto_nieruch ogólnodost'!O$58:O$68,'Koszty netto_nieruch ogólnodost'!O$71:O$81))*O65+'Koszty netto_nieruch ogólnodost'!O64*'Koszty netto_nieruch ogólnodost'!O77","v":0}]
["20 01 02",null,"PLN",null,null,{"$f":"(F$43-SUMPRODUCT('Koszty netto_nieruch ogólnodost'!F$58:F$68,'Koszty netto_nieruch ogólnodost'!F$71:F$81))*F66+'Koszty netto_nieruch ogólnodost'!F65*'Koszty netto_nieruch ogólnodost'!F78","v":0},{"$f":"(G$43-SUMPRODUCT('Koszty netto_nieruch ogólnodost'!G$58:G$68,'Koszty netto_nieruch ogólnodost'!G$71:G$81))*G66+'Koszty netto_nieruch ogólnodost'!G65*'Koszty netto_nieruch ogólnodost'!G78","v":0},{"$f":"(H$43-SUMPRODUCT('Koszty netto_nieruch ogólnodost'!H$58:H$68,'Koszty netto_nieruch ogólnodost'!H$71:H$81))*H66+'Koszty netto_nieruch ogólnodost'!H65*'Koszty netto_nieruch ogólnodost'!H78","v":0},{"$f":"(I$43-SUMPRODUCT('Koszty netto_nieruch ogólnodost'!I$58:I$68,'Koszty netto_nieruch ogólnodost'!I$71:I$81))*I66+'Koszty netto_nieruch ogólnodost'!I65*'Koszty netto_nieruch ogólnodost'!I78","v":0},{"$f":"(J$43-SUMPRODUCT('Koszty netto_nieruch ogólnodost'!J$58:J$68,'Koszty netto_nieruch ogólnodost'!J$71:J$81))*J66+'Koszty netto_nieruch ogólnodost'!J65*'Koszty netto_nieruch ogólnodost'!J78","v":0},{"$f":"(K$43-SUMPRODUCT('Koszty netto_nieruch ogólnodost'!K$58:K$68,'Koszty netto_nieruch ogólnodost'!K$71:K$81))*K66+'Koszty netto_nieruch ogólnodost'!K65*'Koszty netto_nieruch ogólnodost'!K78","v":0},{"$f":"(L$43-SUMPRODUCT('Koszty netto_nieruch ogólnodost'!L$58:L$68,'Koszty netto_nieruch ogólnodost'!L$71:L$81))*L66+'Koszty netto_nieruch ogólnodost'!L65*'Koszty netto_nieruch ogólnodost'!L78","v":0},{"$f":"(M$43-SUMPRODUCT('Koszty netto_nieruch ogólnodost'!M$58:M$68,'Koszty netto_nieruch ogólnodost'!M$71:M$81))*M66+'Koszty netto_nieruch ogólnodost'!M65*'Koszty netto_nieruch ogólnodost'!M78","v":0},{"$f":"(N$43-SUMPRODUCT('Koszty netto_nieruch ogólnodost'!N$58:N$68,'Koszty netto_nieruch ogólnodost'!N$71:N$81))*N66+'Koszty netto_nieruch ogólnodost'!N65*'Koszty netto_nieruch ogólnodost'!N78","v":0},{"$f":"(O$43-SUMPRODUCT('Koszty netto_nieruch ogólnodost'!O$58:O$68,'Koszty netto_nieruch ogólnodost'!O$71:O$81))*O66+'Koszty netto_nieruch ogólnodost'!O65*'Koszty netto_nieruch ogólnodost'!O78","v":0}]
["15 01 02",null,"PLN",null,null,{"$f":"(F$43-SUMPRODUCT('Koszty netto_nieruch ogólnodost'!F$58:F$68,'Koszty netto_nieruch ogólnodost'!F$71:F$81))*F67+'Koszty netto_nieruch ogólnodost'!F66*'Koszty netto_nieruch ogólnodost'!F79","v":0},{"$f":"(G$43-SUMPRODUCT('Koszty netto_nieruch ogólnodost'!G$58:G$68,'Koszty netto_nieruch ogólnodost'!G$71:G$81))*G67+'Koszty netto_nieruch ogólnodost'!G66*'Koszty netto_nieruch ogólnodost'!G79","v":0},{"$f":"(H$43-SUMPRODUCT('Koszty netto_nieruch ogólnodost'!H$58:H$68,'Koszty netto_nieruch ogólnodost'!H$71:H$81))*H67+'Koszty netto_nieruch ogólnodost'!H66*'Koszty netto_nieruch ogólnodost'!H79","v":0},{"$f":"(I$43-SUMPRODUCT('Koszty netto_nieruch ogólnodost'!I$58:I$68,'Koszty netto_nieruch ogólnodost'!I$71:I$81))*I67+'Koszty netto_nieruch ogólnodost'!I66*'Koszty netto_nieruch ogólnodost'!I79","v":0},{"$f":"(J$43-SUMPRODUCT('Koszty netto_nieruch ogólnodost'!J$58:J$68,'Koszty netto_nieruch ogólnodost'!J$71:J$81))*J67+'Koszty netto_nieruch ogólnodost'!J66*'Koszty netto_nieruch ogólnodost'!J79","v":0},{"$f":"(K$43-SUMPRODUCT('Koszty netto_nieruch ogólnodost'!K$58:K$68,'Koszty netto_nieruch ogólnodost'!K$71:K$81))*K67+'Koszty netto_nieruch ogólnodost'!K66*'Koszty netto_nieruch ogólnodost'!K79","v":0},{"$f":"(L$43-SUMPRODUCT('Koszty netto_nieruch ogólnodost'!L$58:L$68,'Koszty netto_nieruch ogólnodost'!L$71:L$81))*L67+'Koszty netto_nieruch ogólnodost'!L66*'Koszty netto_nieruch ogólnodost'!L79","v":0},{"$f":"(M$43-SUMPRODUCT('Koszty netto_nieruch ogólnodost'!M$58:M$68,'Koszty netto_nieruch ogólnodost'!M$71:M$81))*M67+'Koszty netto_nieruch ogólnodost'!M66*'Koszty netto_nieruch ogólnodost'!M79","v":0},{"$f":"(N$43-SUMPRODUCT('Koszty netto_nieruch ogólnodost'!N$58:N$68,'Koszty netto_nieruch ogólnodost'!N$71:N$81))*N67+'Koszty netto_nieruch ogólnodost'!N66*'Koszty netto_nieruch ogólnodost'!N79","v":0},{"$f":"(O$43-SUMPRODUCT('Koszty netto_nieruch ogólnodost'!O$58:O$68,'Koszty netto_nieruch ogólnodost'!O$71:O$81))*O67+'Koszty netto_nieruch ogólnodost'!O66*'Koszty netto_nieruch ogólnodost'!O79","v":0}]
["20 01 40",null,"PLN",null,null,{"$f":"(F$43-SUMPRODUCT('Koszty netto_nieruch ogólnodost'!F$58:F$68,'Koszty netto_nieruch ogólnodost'!F$71:F$81))*F68+'Koszty netto_nieruch ogólnodost'!F67*'Koszty netto_nieruch ogólnodost'!F80","v":0},{"$f":"(G$43-SUMPRODUCT('Koszty netto_nieruch ogólnodost'!G$58:G$68,'Koszty netto_nieruch ogólnodost'!G$71:G$81))*G68+'Koszty netto_nieruch ogólnodost'!G67*'Koszty netto_nieruch ogólnodost'!G80","v":0},{"$f":"(H$43-SUMPRODUCT('Koszty netto_nieruch ogólnodost'!H$58:H$68,'Koszty netto_nieruch ogólnodost'!H$71:H$81))*H68+'Koszty netto_nieruch ogólnodost'!H67*'Koszty netto_nieruch ogólnodost'!H80","v":0},{"$f":"(I$43-SUMPRODUCT('Koszty netto_nieruch ogólnodost'!I$58:I$68,'Koszty netto_nieruch ogólnodost'!I$71:I$81))*I68+'Koszty netto_nieruch ogólnodost'!I67*'Koszty netto_nieruch ogólnodost'!I80","v":0},{"$f":"(J$43-SUMPRODUCT('Koszty netto_nieruch ogólnodost'!J$58:J$68,'Koszty netto_nieruch ogólnodost'!J$71:J$81))*J68+'Koszty netto_nieruch ogólnodost'!J67*'Koszty netto_nieruch ogólnodost'!J80","v":0},{"$f":"(K$43-SUMPRODUCT('Koszty netto_nieruch ogólnodost'!K$58:K$68,'Koszty netto_nieruch ogólnodost'!K$71:K$81))*K68+'Koszty netto_nieruch ogólnodost'!K67*'Koszty netto_nieruch ogólnodost'!K80","v":0},{"$f":"(L$43-SUMPRODUCT('Koszty netto_nieruch ogólnodost'!L$58:L$68,'Koszty netto_nieruch ogólnodost'!L$71:L$81))*L68+'Koszty netto_nieruch ogólnodost'!L67*'Koszty netto_nieruch ogólnodost'!L80","v":0},{"$f":"(M$43-SUMPRODUCT('Koszty netto_nieruch ogólnodost'!M$58:M$68,'Koszty netto_nieruch ogólnodost'!M$71:M$81))*M68+'Koszty netto_nieruch ogólnodost'!M67*'Koszty netto_nieruch ogólnodost'!M80","v":0},{"$f":"(N$43-SUMPRODUCT('Koszty netto_nieruch ogólnodost'!N$58:N$68,'Koszty netto_nieruch ogólnodost'!N$71:N$81))*N68+'Koszty netto_nieruch ogólnodost'!N67*'Koszty netto_nieruch ogólnodost'!N80","v":0},{"$f":"(O$43-SUMPRODUCT('Koszty netto_nieruch ogólnodost'!O$58:O$68,'Koszty netto_nieruch ogólnodost'!O$71:O$81))*O68+'Koszty netto_nieruch ogólnodost'!O67*'Koszty netto_nieruch ogólnodost'!O80","v":0}]
["Inne",null,"PLN",null,null,{"$f":"(F$43-SUMPRODUCT('Koszty netto_nieruch ogólnodost'!F$58:F$68,'Koszty netto_nieruch ogólnodost'!F$71:F$81))*F69+'Koszty netto_nieruch ogólnodost'!F68*'Koszty netto_nieruch ogólnodost'!F81","v":0},{"$f":"(G$43-SUMPRODUCT('Koszty netto_nieruch ogólnodost'!G$58:G$68,'Koszty netto_nieruch ogólnodost'!G$71:G$81))*G69+'Koszty netto_nieruch ogólnodost'!G68*'Koszty netto_nieruch ogólnodost'!G81","v":0},{"$f":"(H$43-SUMPRODUCT('Koszty netto_nieruch ogólnodost'!H$58:H$68,'Koszty netto_nieruch ogólnodost'!H$71:H$81))*H69+'Koszty netto_nieruch ogólnodost'!H68*'Koszty netto_nieruch ogólnodost'!H81","v":0},{"$f":"(I$43-SUMPRODUCT('Koszty netto_nieruch ogólnodost'!I$58:I$68,'Koszty netto_nieruch ogólnodost'!I$71:I$81))*I69+'Koszty netto_nieruch ogólnodost'!I68*'Koszty netto_nieruch ogólnodost'!I81","v":0},{"$f":"(J$43-SUMPRODUCT('Koszty netto_nieruch ogólnodost'!J$58:J$68,'Koszty netto_nieruch ogólnodost'!J$71:J$81))*J69+'Koszty netto_nieruch ogólnodost'!J68*'Koszty netto_nieruch ogólnodost'!J81","v":0},{"$f":"(K$43-SUMPRODUCT('Koszty netto_nieruch ogólnodost'!K$58:K$68,'Koszty netto_nieruch ogólnodost'!K$71:K$81))*K69+'Koszty netto_nieruch ogólnodost'!K68*'Koszty netto_nieruch ogólnodost'!K81","v":0},{"$f":"(L$43-SUMPRODUCT('Koszty netto_nieruch ogólnodost'!L$58:L$68,'Koszty netto_nieruch ogólnodost'!L$71:L$81))*L69+'Koszty netto_nieruch ogólnodost'!L68*'Koszty netto_nieruch ogólnodost'!L81","v":0},{"$f":"(M$43-SUMPRODUCT('Koszty netto_nieruch ogólnodost'!M$58:M$68,'Koszty netto_nieruch ogólnodost'!M$71:M$81))*M69+'Koszty netto_nieruch ogólnodost'!M68*'Koszty netto_nieruch ogólnodost'!M81","v":0},{"$f":"(N$43-SUMPRODUCT('Koszty netto_nieruch ogólnodost'!N$58:N$68,'Koszty netto_nieruch ogólnodost'!N$71:N$81))*N69+'Koszty netto_nieruch ogólnodost'!N68*'Koszty netto_nieruch ogólnodost'!N81","v":0},{"$f":"(O$43-SUMPRODUCT('Koszty netto_nieruch ogólnodost'!O$58:O$68,'Koszty netto_nieruch ogólnodost'!O$71:O$81))*O69+'Koszty netto_nieruch ogólnodost'!O68*'Koszty netto_nieruch ogólnodost'!O81","v":0}]
[]
["Należna rekompensata według pozycji prac interwencyjnych"]
["wynajem pojemników",null,"PLN",null,null,{"$f":"F$44*'Prace interwencyjne'!$F3","v":0},{"$f":"G$44*'Prace interwencyjne'!$F3","v":0},{"$f":"H$44*'Prace interwencyjne'!$F3","v":0},{"$f":"I$44*'Prace interwencyjne'!$F3","v":0},{"$f":"J$44*'Prace interwencyjne'!$F3","v":0},{"$f":"K$44*'Prace interwencyjne'!$F3","v":0},{"$f":"L$44*'Prace interwencyjne'!$F3","v":0},{"$f":"M$44*'Prace interwencyjne'!$F3","v":0},{"$f":"N$44*'Prace interwencyjne'!$F3","v":0},{"$f":"O$44*'Prace interwencyjne'!$F3","v":0}]
["wynajem pracowników",null,"PLN",null,null,{"$f":"F$44*'Prace interwencyjne'!$F4","v":0},{"$f":"G$44*'Prace interwencyjne'!$F4","v":0},{"$f":"H$44*'Prace interwencyjne'!$F4","v":0},{"$f":"I$44*'Prace interwencyjne'!$F4","v":0},{"$f":"J$44*'Prace interwencyjne'!$F4","v":0},{"$f":"K$44*'Prace interwencyjne'!$F4","v":0},{"$f":"L$44*'Prace interwencyjne'!$F4","v":0},{"$f":"M$44*'Prace interwencyjne'!$F4","v":0},{"$f":"N$44*'Prace interwencyjne'!$F4","v":0},{"$f":"O$44*'Prace interwencyjne'!$F4","v":0}]
["wynajem ładowarki",null,"PLN",null,null,{"$f":"F$44*'Prace interwencyjne'!$F5","v":0},{"$f":"G$44*'Prace interwencyjne'!$F5","v":0},{"$f":"H$44*'Prace interwencyjne'!$F5","v":0},{"$f":"I$44*'Prace interwencyjne'!$F5","v":0},{"$f":"J$44*'Prace interwencyjne'!$F5","v":0},{"$f":"K$44*'Prace interwencyjne'!$F5","v":0},{"$f":"L$44*'Prace interwencyjne'!$F5","v":0},{"$f":"M$44*'Prace interwencyjne'!$F5","v":0},{"$f":"N$44*'Prace interwencyjne'!$F5","v":0},{"$f":"O$44*'Prace interwencyjne'!$F5","v":0}]
["wynajem samochodu dostawczego",null,"PLN",null,null,{"$f":"F$44*'Prace interwencyjne'!$F6","v":0},{"$f":"G$44*'Prace interwencyjne'!$F6","v":0},{"$f":"H$44*'Prace interwencyjne'!$F6","v":0},{"$f":"I$44*'Prace interwencyjne'!$F6","v":0},{"$f":"J$44*'Prace interwencyjne'!$F6","v":0},{"$f":"K$44*'Prace interwencyjne'!$F6","v":0},{"$f":"L$44*'Prace interwencyjne'!$F6","v":0},{"$f":"M$44*'Prace interwencyjne'!$F6","v":0},{"$f":"N$44*'Prace interwencyjne'!$F6","v":0},{"$f":"O$44*'Prace interwencyjne'!$F6","v":0}]
["wynajem samochodu ciężarowego",null,"PLN",null,null,{"$f":"F$44*'Prace interwencyjne'!$F7","v":0},{"$f":"G$44*'Prace interwencyjne'!$F7","v":0},{"$f":"H$44*'Prace interwencyjne'!$F7","v":0},{"$f":"I$44*'Prace interwencyjne'!$F7","v":0},{"$f":"J$44*'Prace interwencyjne'!$F7","v":0},{"$f":"K$44*'Prace interwencyjne'!$F7","v":0},{"$f":"L$44*'Prace interwencyjne'!$F7","v":0},{"$f":"M$44*'Prace interwencyjne'!$F7","v":0},{"$f":"N$44*'Prace interwencyjne'!$F7","v":0},{"$f":"O$44*'Prace interwencyjne'!$F7","v":0}]
[]
["STAWKI"]
["20 03 01",null,"PLN/Mg",null,null,{"$f":"IFERROR(F72/F45,0)","v":0},0,0,0,0,0,{"$f":"IFERROR(L72/L45,0)","v":0},0,0,0]
["20 03 07",null,"PLN/Mg",null,null,{"$f":"IFERROR(F73/F46,0)","v":0},0,0,0,0,0,0,0,0,0]
["20 01 35, 20 01 36",null,"PLN/Mg",null,null,{"$f":"IFERROR(F74/F47,0)","v":0},0,0,0,0,0,0,0,0,0]
["17 01 podgrupa",null,"PLN/Mg",null,null,{"$f":"IFERROR(F75/F48,0)","v":0},0,0,0,0,0,0,0,0,0]
["16 01 03",null,"PLN/Mg",null,null,{"$f":"IFERROR(F76/F49,0)","v":0},0,0,0,0,0,0,0,0,0]
["20 03 99",null,"PLN/Mg",null,null,{"$f":"IFERROR(F77/F50,0)","v":0},0,0,0,0,0,0,0,0,0]
["20 01 01",null,"PLN/Mg",null,null,{"$f":"IFERROR(F78/F51,0)","v":0},0,0,0,0,0,0,0,0,0]
["20 01 02",null,"PLN/Mg",null,null,{"$f":"IFERROR(F79/F52,0)","v":0},0,0,0,0,0,0,0,0,0]
["15 01 02",null,"PLN/Mg",null,null,{"$f":"IFERROR(F80/F53,0)","v":0},0,0,0,0,0,0,0,0,0]
["20 01 40",null,"PLN/Mg",null,null,{"$f":"IFERROR(F81/F54,0)","v":0},0,0,0,0,0,0,0,0,0]
["Inne",null,"PLN/Mg",null,null,{"$f":"IFERROR(F82/F55,0)","v":0},0,0,0,0,0,0,0,0,0]
["Prace interwencyjne – wynajem pojemników",null,"PLN/szt.",null,null,0,0,0,0,0,0,0,0,0,0]
["Prace interwencyjne – wynajem pracowników",null,"PLN/godz.",null,null,0,0,0,0,0,0,0,0,0,0]
["Prace interwencyjne – wynajem ładowarki",null,"PLN/godz.",null,null,0,0,0,0,0,0,0,0,0,0]
["Prace interwencyjne – wynajem samochodu dostawczego",null,"PLN/km",null,null,0,0,0,0,0,0,0,0,0,0]
["Prace interwencyjne – wynajem samochodu ciężarowego",null,"PLN/km",null,null,0,0,0,0,0,0,0,0,0,0]
[null,null,null,null,null,null,null,null,null,null,0]